bitfinex/quotes_SOLUSD_20241231
["timestamp","ask_amount","ask_price","bid_price","bid_amount"]
[1735653173392,10.01931947,196.19,196.15,1.6546]
[1735653173818,10.01931947,196.2,196.15,1.6546]
[1735653174320,20.0,196.24,196.15,1.6546]
[1735653174321,10.01931947,196.19,196.15,1.6546]
[1735653174610,10.01931947,196.19,196.14,1.43303066]
[1735653174808,10.01931947,196.21,196.14,1.43303066]
[1735653175316,10.01931947,196.2,196.15,0.12549]
[1735653175493,10.01931947,196.19,196.15,0.12549]
[1735653176215,20.0,196.24,196.15,0.12549]
[1735653176385,15.62974778,196.19,196.15,0.12549]
[1735653176590,15.62974778,196.19,196.14,24.027864]
[1735653176813,15.62974778,196.2,196.14,24.027864]
[1735653176996,15.62974778,196.19,196.14,24.027864]
[1735653177316,15.62974778,196.19,196.13,24.027864]
[1735653177609,15.62974778,196.2,196.13,24.027864]
[1735653177988,26.3376,196.24,196.14,1.43450048]
[1735653177989,15.62974778,196.19,196.14,1.43450048]
[1735653178523,15.62974778,196.19,196.15,0.12549]
[1735653178714,15.62974778,196.2,196.15,0.12549]
[1735653180399,15.62974778,196.19,196.15,0.12549]
[1735653180617,15.62974778,196.2,196.15,0.12549]
[1735653180985,15.62974778,196.2,196.14,0.12549]
[1735653181706,15.62974778,196.18,196.11,15.62974778]
[1735653181904,15.62974778,196.17,196.1,17.28434778]
[1735653182100,15.62974778,196.19,196.14,0.25098]
[1735653182308,15.62974778,196.19,196.12,15.62974778]
[1735653182606,15.62974778,196.19,196.13,15.88072778]
[1735653183702,15.62974778,196.18,196.11,15.62974778]
[1735653184209,15.62974778,196.18,196.12,0.25098]
[1735653184393,15.62974778,196.18,196.12,24.027864]
[1735653184709,15.62974778,196.17,196.12,25.46239507]
[1735653185092,15.62974778,196.15,196.12,1.43453107]
[1735653185289,20.0,196.17,196.12,1.43453107]
[1735653185495,15.62974778,196.2,196.13,15.62974778]
[1735653185701,15.62974778,196.2,196.14,15.75523778]
[1735653185896,20.0,196.21,196.16,0.12549]
[1735653186088,15.62974778,196.2,196.14,15.62974778]
[1735653186293,15.62974778,196.2,196.13,15.62974778]
[1735653186688,15.62974778,196.19,196.13,15.62974778]
[1735653186915,15.62974778,196.19,196.12,39.65761178]
[1735653187211,15.62974778,196.19,196.13,23.776884]
[1735653187411,15.62974778,196.16,196.1,17.28434778]
[1735653187918,15.62974778,196.17,196.11,15.62974778]
[1735653188092,15.62974778,196.17,196.11,0.12549]
[1735653188791,15.62974778,196.16,196.11,0.12549]
[1735653189096,15.62974778,196.17,196.11,0.12549]
[1735653190244,15.62974778,196.18,196.11,15.75523778]
[1735653190900,15.62974778,196.17,196.11,0.12549]
[1735653191094,15.62974778,196.15,196.07,6.664]
[1735653191301,15.62974778,196.15,196.08,15.62974778]
[1735653191613,15.62974778,196.15,196.05,14.3654]
[1735653191614,15.62974778,196.11,196.05,1.6139]
[1735653191795,15.62974778,196.09,196.06,1.43460577]
[1735653192417,15.62974778,196.1,196.04,1.43460577]
[1735653192616,15.62974778,196.09,196.04,1.43460577]
[1735653192921,15.62974778,196.08,196.04,1.43460577]
[1735653193098,15.62974778,196.06,196.04,1.43460577]
[1735653193298,15.62974778,196.08,196.01,15.62974778]
[1735653193710,15.62974778,196.07,196.0,17.24364778]
[1735653194209,1.5257,196.12,196.01,39.65761178]
[1735653194210,15.62974778,196.08,196.01,39.65761178]
[1735653194424,15.62974778,196.08,196.02,15.62974778]
[1735653194601,15.62974778,196.09,196.03,0.12549]
[1735653194917,15.62974778,196.1,196.03,15.62974778]
[1735653195700,15.62974778,196.1,196.04,24.027864]
[1735653195902,15.62974778,196.09,196.04,24.027864]
[1735653196098,15.62974778,196.09,196.04,0.25098]
[1735653196805,15.62974778,196.08,196.01,15.62974778]
[1735653197004,15.62974778,196.08,196.02,24.027864]
[1735653197707,15.62974778,196.08,196.02,0.12549]
[1735653198117,15.62974778,196.06,196.0,1.6139]
[1735653198429,10.01691154,196.06,196.0,1.6139]
[1735653198630,10.01691154,196.05,196.0,1.6139]
[1735653198800,10.01691154,196.05,195.99,0.12549]
[1735653199004,10.01691154,196.06,195.99,10.01691154]
[1735653201236,20.0,196.09,196.01,10.01691154]
[1735653201405,10.01691154,196.09,196.02,10.01691154]
[1735653202227,0.12549,196.11,196.01,1.43050344]
[1735653202430,10.01691154,196.05,196.01,1.43050344]
[1735653202633,10.01691154,196.04,196.01,1.43050344]
[1735653202924,10.01691154,196.04,195.97,10.01691154]
[1735653203526,10.01691154,196.03,195.96,11.44741498]
[1735653203933,10.01691154,196.03,195.96,10.01691154]
[1735653204812,6.3005,196.08,195.95,1.6139]
[1735653204813,10.01691154,196.01,195.95,1.6139]
[1735653205206,10.01691154,196.02,195.95,1.6139]
[1735653205408,10.01691154,196.01,195.95,1.6139]
[1735653205607,5.1002,196.07,195.95,1.6139]
[1735653205906,10.01691154,196.03,195.96,10.14240154]
[1735653206111,10.01691154,196.02,195.96,0.12549]
[1735653206334,10.01691154,196.02,195.95,11.63081154]
[1735653206629,10.01691154,196.01,195.95,1.6139]
[1735653207422,10.01691154,196.0,195.94,1.43050344]
[1735653207928,10.01691154,195.99,195.94,1.43050344]
[1735653208435,10.01691154,195.98,195.94,1.43050344]
[1735653208612,10.01691154,195.98,195.93,1.43050344]
[1735653209121,10.01691154,195.96,195.93,1.43050344]
[1735653209327,10.01691154,195.96,195.92,1.43050344]
[1735653209728,10.01691154,195.97,195.92,1.43050344]
[1735653210111,10.01691154,195.97,195.91,3.00570344]
[1735653210813,10.01691154,195.96,195.91,1.43050344]
[1735653211417,10.01691154,195.96,195.91,0.12549]
[1735653211611,10.01691154,195.98,195.91,10.14240154]
[1735653212013,10.01691154,195.98,195.91,11.57290498]
[1735653212213,10.01691154,195.97,195.91,1.43050344]
[1735653212427,10.01691154,195.96,195.91,1.43050344]
[1735653212616,10.01691154,195.97,195.91,1.43050344]
[1735653212943,10.01691154,195.97,195.92,1.43050344]
[1735653213243,10.01691154,195.96,195.92,1.43050344]
[1735653213615,10.01691154,195.96,195.91,1.43050344]
[1735653214633,10.01691154,195.96,195.9,1.43050344]
[1735653214839,10.01691154,195.95,195.9,1.43050344]
[1735653215749,6.3005,196.0,195.91,10.14240154]
[1735653215924,10.01691154,195.98,195.91,10.14240154]
[1735653216240,10.01691154,195.98,195.89,1.43050344]
[1735653216241,10.01691154,195.98,195.92,10.01691154]
[1735653216809,10.01691154,196.0,195.93,10.14240154]
[1735653217010,10.01691154,196.0,195.94,10.01691154]
[1735653217213,20.0,196.01,195.96,10.01691154]
[1735653217635,30.01691154,196.01,195.95,0.12549]
[1735653218153,10.01691154,196.02,195.95,10.14240154]
[1735653218651,10.01691154,196.02,195.95,11.57290498]
[1735653219142,10.01691154,196.02,195.95,11.44741498]
[1735653219432,10.01691154,196.0,195.95,1.43050344]
[1735653220024,10.01691154,196.0,195.94,1.43050344]
[1735653220648,10.01691154,195.99,195.94,1.43050344]
[1735653220855,10.01691154,195.98,195.94,1.43050344]
[1735653221018,10.01691154,195.99,195.94,1.43050344]
[1735653221213,20.0,196.0,195.94,11.44741498]
[1735653221419,20.0,196.0,195.95,4.0]
[1735653222419,30.01691154,196.0,195.95,4.0]
[1735653223532,10.01691154,195.99,195.95,8.0]
[1735653223846,10.01691154,195.96,195.95,8.0]
[1735653225745,30.01691154,195.97,195.95,8.0]
[1735653226725,10.01691154,195.96,195.95,8.0]
[1735653229331,10.01691154,195.97,195.95,8.0]
[1735653230030,30.01691154,195.97,195.95,8.0]
[1735653230422,10.01691154,195.96,195.95,8.0]
[1735653235226,8.0734,196.01,195.95,8.0]
[1735653235456,10.01691154,196.0,195.95,8.0]
[1735653235634,5.1013,196.03,195.95,8.0]
[1735653235844,10.01691154,196.01,195.95,8.0]
[1735653236434,30.01691154,196.0,195.95,12.0]
[1735653236742,10.01691154,196.0,195.95,12.0]
[1735653237329,30.01691154,196.0,195.95,12.0]
[1735653237536,10.01691154,195.99,195.95,12.0]
[1735653237750,20.0,196.0,195.95,12.0]
[1735653237751,10.01691154,195.98,195.95,12.0]
[1735653238331,10.01691154,195.98,195.95,16.0]
[1735653239754,10.01691154,195.98,195.95,20.0]
[1735653240241,30.01691154,196.0,195.95,20.0]
[1735653240848,30.01691154,196.0,195.96,1.44467416]
[1735653241433,30.01691154,196.0,195.95,20.0]
[1735653243136,6.0268,196.05,195.95,20.0]
[1735653243137,6.0268,196.05,195.96,1.44578985]
[1735653243339,10.01691154,196.02,195.96,1.44578985]
[1735653243860,10.01691154,196.02,195.97,1.44578985]
[1735653244269,10.01691154,196.03,195.97,1.44578985]
[1735653244565,10.01691154,196.03,195.98,1.44578985]
[1735653244778,5.0998,196.09,195.98,11.46270139]
[1735653244931,10.01691154,196.06,196.0,10.01691154]
[1735653245856,10.01691154,196.06,196.01,1.44578985]
[1735653246236,5.0982,196.15,196.01,1.44578985]
[1735653246440,10.01691154,196.09,196.02,10.01691154]
[1735653246641,10.01691154,196.08,196.02,1.44578985]
[1735653247151,20.0,196.12,196.02,11.46270139]
[1735653247358,10.01691154,196.08,196.02,11.46270139]
[1735653247534,10.01691154,196.08,196.03,1.44578985]
[1735653248158,10.01691154,196.08,196.04,1.44578985]
[1735653248652,0.12549,196.14,196.04,1.44578985]
[1735653248853,0.12549,196.14,196.01,10.01691154]
[1735653248854,10.01691154,196.08,196.01,10.01691154]
[1735653249149,10.01691154,196.08,196.01,13.01532467]
[1735653249564,10.01691154,196.09,196.02,11.46265561]
[1735653250454,10.01691154,196.09,196.03,1.44574407]
[1735653250658,10.01691154,196.09,196.04,23.902374]
[1735653250840,5.0,196.19,196.09,24.027864]
[1735653250841,10.01691154,196.19,196.09,24.027864]
[1735653251051,10.01691154,196.19,196.13,10.01691154]
[1735653251740,10.01691154,196.19,196.12,10.01691154]
[1735653251933,10.01691154,196.19,196.06,23.776884]
[1735653251934,10.01691154,196.18,196.11,10.01691154]
[1735653255268,10.01691154,196.16,196.1,10.01691154]
[1735653255568,11.3988,196.2,196.08,1.44077172]
[1735653255569,10.01691154,196.15,196.09,10.01691154]
[1735653256559,10.01691154,196.16,196.09,10.01691154]
[1735653256739,10.01691154,196.15,196.09,10.01691154]
[1735653257952,10.01691154,196.16,196.09,10.01691154]
[1735653258175,10.01691154,196.16,196.1,10.01691154]
[1735653259074,10.01691154,196.16,196.09,4.0]
[1735653259075,10.01691154,196.16,196.09,14.01691154]
[1735653259775,10.01691154,196.15,196.09,14.01691154]
[1735653261174,10.01691154,196.15,196.09,18.01691154]
[1735653262652,10.01691154,196.15,196.09,8.0]
[1735653263053,2.06263302,196.19,196.09,18.01691154]
[1735653263254,10.01691154,196.15,196.09,18.01691154]
[1735653263664,6.302,196.2,196.12,10.01691154]
[1735653263864,10.01691154,196.19,196.12,10.01691154]
[1735653264481,10.01691154,196.18,196.12,10.01691154]
[1735653265180,10.01691154,196.19,196.12,10.01691154]
[1735653265485,10.01691154,196.2,196.13,10.01691154]
[1735653266492,10.01691154,196.2,196.14,10.01691154]
[1735653267674,10.01691154,196.21,196.14,10.01691154]
[1735653268295,10.01691154,196.21,196.14,14.01691154]
[1735653268669,8.52512642,196.25,196.14,14.01691154]
[1735653268867,10.01691154,196.21,196.14,14.01691154]
[1735653269664,6.6493,196.27,196.16,10.01691154]
[1735653269665,10.01691154,196.23,196.16,10.01691154]
[1735653271201,10.01691154,196.2,196.14,4.0]
[1735653271593,10.01691154,196.19,196.14,4.0]
[1735653271892,10.01691154,196.2,196.14,4.0]
[1735653272402,10.01691154,196.21,196.14,4.0]
[1735653272903,10.01691154,196.21,196.14,14.01691154]
[1735653273887,30.01691154,196.22,196.15,10.01691154]
[1735653274066,10.01691154,196.23,196.16,10.01691154]
[1735653274578,10.01691154,196.22,196.15,10.14240154]
[1735653275094,10.01691154,196.22,196.15,0.12549]
[1735653275266,10.01691154,196.22,196.15,10.14240154]
[1735653276280,10.01691154,196.21,196.15,10.01691154]
[1735653276775,10.01691154,196.21,196.14,14.01691154]
[1735653277678,10.01691154,196.22,196.15,10.01691154]
[1735653277865,10.01691154,196.22,196.15,14.01691154]
[1735653283893,10.01691154,196.21,196.15,4.0]
[1735653284093,10.01691154,196.2,196.15,4.0]
[1735653284474,10.01691154,196.21,196.15,4.0]
[1735653285302,10.01691154,196.2,196.15,4.0]
[1735653285896,10.01691154,196.21,196.15,4.0]
[1735653291611,10.01691154,196.21,196.16,1.43933582]
[1735653292594,10.01691154,196.21,196.15,4.0]
[1735653293611,10.01691154,196.21,196.16,1.44094774]
[1735653294418,10.01691154,196.21,196.15,4.0]
[1735653295483,10.01691154,196.22,196.15,14.01691154]
[1735653295905,10.01691154,196.22,196.16,1.44310721]
[1735653296688,10.01691154,196.22,196.15,14.01691154]
[1735653297696,10.01691154,196.22,196.16,1.44363994]
[1735653298497,10.01691154,196.22,196.17,1.44363994]
[1735653299213,10.01691154,196.22,196.15,14.01691154]
[1735653299806,10.01691154,196.22,196.16,1.44380049]
[1735653300610,10.01691154,196.21,196.17,1.44380049]
[1735653300811,10.01691154,196.22,196.17,1.44380049]
[1735653301415,10.01691154,196.22,196.16,10.01691154]
[1735653302127,10.01691154,196.21,196.15,4.0]
[1735653302415,20.0,196.24,196.15,4.0]
[1735653302590,10.01691154,196.2,196.16,2.99405545]
[1735653302789,10.01691154,196.2,196.16,4.43752959]
[1735653303305,10.01691154,196.2,196.16,1.44347414]
[1735653303500,10.01691154,196.2,196.17,1.44347414]
[1735653303897,20.0,196.24,196.17,1.44347414]
[1735653304096,10.01691154,196.21,196.15,14.01691154]
[1735653304498,10.01691154,196.2,196.15,4.0]
[1735653304717,10.01691154,196.21,196.16,1.44463109]
[1735653305324,20.0,196.24,196.17,1.44463109]
[1735653305325,10.01691154,196.23,196.17,1.44463109]
[1735653305716,10.01691154,196.23,196.16,10.01691154]
[1735653306331,10.01691154,196.23,196.18,1.44565523]
[1735653306536,10.01691154,196.22,196.18,1.44565523]
[1735653306716,20.0,196.24,196.18,1.44565523]
[1735653307031,10.01691154,196.22,196.16,2.52444678]
[1735653307533,10.01691154,196.22,196.17,3.00136108]
[1735653307702,10.01691154,196.22,196.17,4.4481357]
[1735653308119,10.01691154,196.22,196.17,1.44677462]
[1735653308336,10.01691154,196.21,196.17,1.44677462]
[1735653308510,10.01691154,196.21,196.18,1.44677462]
[1735653308719,10.01691154,196.2,196.18,1.44677462]
[1735653309011,10.01691154,196.19,196.18,1.44677462]
[1735653309204,10.01691154,196.19,196.16,2.52766683]
[1735653309534,10.01691154,196.2,196.16,2.52766683]
[1735653309707,10.01691154,196.19,196.15,4.0]
[1735653310033,10.01691154,196.19,196.17,1.44861465]
[1735653310497,10.01691154,196.19,196.18,1.44861465]
[1735653311098,10.01691154,196.2,196.18,1.44861465]
[1735653311321,10.01691154,196.19,196.18,1.44861465]
[1735653313127,10.01691154,196.19,196.15,4.0]
[1735653313128,0.12549,196.18,196.15,4.0]
[1735653313367,30.01691154,196.16,196.15,4.0]
[1735653313625,30.14240154,196.16,196.15,4.0]
[1735653315114,0.12549,196.09,196.07,2.53044675]
[1735653315431,10.14240154,196.08,196.07,2.53044675]
[1735653315616,10.14240154,196.08,196.0,2.53044675]
[1735653316002,10.14240154,196.08,196.01,2.95649588]
[1735653316644,10.01691154,196.08,195.99,1.6108]
[1735653316844,7.956,196.15,196.03,10.01691154]
[1735653317138,10.01691154,196.14,196.08,10.01691154]
[1735653317338,7.98051686,196.16,196.09,10.01691154]
[1735653317339,17.9974284,196.16,196.09,10.01691154]
[1735653317556,20.0,196.14,196.11,10.01691154]
[1735653318146,10.01691154,196.16,196.09,10.01691154]
[1735653318349,10.01691154,196.17,196.11,10.01691154]
[1735653318544,10.01691154,196.18,196.12,10.01691154]
[1735653318714,10.01691154,196.2,196.13,10.01691154]
[1735653318913,10.01691154,196.2,196.1,0.12549]
[1735653318914,10.01691154,196.21,196.14,10.01691154]
[1735653319340,10.01691154,196.2,196.14,10.01691154]
[1735653319524,10.01691154,196.19,196.13,10.01691154]
[1735653319719,10.01691154,196.19,196.12,10.01691154]
[1735653319921,10.01691154,196.19,196.13,10.01691154]
[1735653320135,10.01691154,196.2,196.13,10.01691154]
[1735653320327,10.01691154,196.2,196.14,10.01691154]
[1735653321228,10.01691154,196.2,196.13,10.01691154]
[1735653321431,10.01691154,196.19,196.13,10.01691154]
[1735653322248,7.956,196.25,196.15,10.01691154]
[1735653322452,10.01691154,196.23,196.16,10.01691154]
[1735653322669,30.01691154,196.22,196.15,10.01691154]
[1735653322953,10.01691154,196.19,196.12,10.01691154]
[1735653323833,10.01691154,196.16,196.1,10.01691154]
[1735653324029,10.01691154,196.15,196.09,10.01691154]
[1735653324232,25.0963,196.22,196.12,10.01691154]
[1735653324538,10.01691154,196.2,196.13,10.01691154]
[1735653325661,10.01691154,196.19,196.13,10.01691154]
[1735653325859,10.01691154,196.21,196.14,10.01691154]
[1735653326241,15.62695787,196.21,196.14,15.62695787]
[1735653326763,15.62695787,196.2,196.13,15.62695787]
[1735653327459,15.62695787,196.19,196.12,15.62695787]
[1735653328565,15.62695787,196.17,196.09,0.25098]
[1735653328776,15.62695787,196.15,196.08,15.62695787]
[1735653329357,15.62695787,196.16,196.09,15.62695787]
[1735653329566,5.097,196.2,196.09,15.62695787]
[1735653329567,15.62695787,196.15,196.09,15.62695787]
[1735653329958,15.62695787,196.15,196.08,15.62695787]
[1735653330139,15.62695787,196.14,196.07,15.62695787]
[1735653330460,15.62695787,196.13,196.06,15.62695787]
[1735653330872,15.62695787,196.13,196.07,15.62695787]
[1735653331062,15.62695787,196.14,196.07,15.62695787]
[1735653331765,35.62695787,196.13,196.06,15.62695787]
[1735653331946,15.62695787,196.12,196.05,15.62695787]
[1735653332468,7.8678,196.15,196.04,15.62695787]
[1735653332469,15.62695787,196.11,196.04,15.62695787]
[1735653333467,15.62695787,196.12,196.05,15.62695787]
[1735653333941,15.62695787,196.1,196.03,15.62695787]
[1735653334144,15.62695787,196.09,196.02,15.62695787]
[1735653336643,15.62695787,196.1,196.03,15.62695787]
[1735653338381,15.62695787,196.09,196.02,15.62695787]
[1735653339658,5.0989,196.12,196.0,15.62695787]
[1735653339659,15.62695787,196.08,196.0,15.62695787]
[1735653339978,15.62695787,196.07,196.0,15.62695787]
[1735653340164,15.62695787,196.08,196.0,15.62695787]
[1735653340353,15.62695787,196.07,196.0,15.62695787]
[1735653340550,15.62695787,196.05,195.98,15.62695787]
[1735653340777,15.62695787,196.04,195.97,15.62695787]
[1735653341187,15.62695787,196.05,195.98,15.62695787]
[1735653341471,15.62695787,196.05,195.97,15.62695787]
[1735653342687,15.62695787,196.04,195.97,15.62695787]
[1735653343068,15.62695787,196.02,195.96,19.62695787]
[1735653343401,15.62695787,196.0,195.96,4.0]
[1735653343685,15.62695787,195.98,195.96,4.0]
[1735653345084,15.62695787,195.97,195.96,4.0]
[1735653345389,20.0,196.0,195.96,4.0]
[1735653345569,35.62695787,196.0,195.96,4.0]
[1735653345761,15.62695787,195.99,195.96,4.0]
[1735653346080,15.62695787,195.98,195.96,4.0]
[1735653346276,15.62695787,195.99,195.96,4.0]
[1735653348183,35.62695787,196.0,195.96,4.0]
[1735653348387,20.0,196.0,195.96,4.0]
[1735653349058,5.1004,196.07,195.96,4.0]
[1735653349059,1.6229,196.09,195.99,15.62695787]
[1735653349266,17.24985787,196.09,196.02,15.62695787]
[1735653349471,15.62695787,196.08,196.01,15.62695787]
[1735653349655,17.24985787,196.09,196.01,15.62695787]
[1735653350390,20.0,196.06,196.01,15.62695787]
[1735653350558,20.0,196.06,195.97,36.784864]
[1735653350764,20.0,196.06,195.99,15.62695787]
[1735653351381,15.62695787,196.06,195.99,15.62695787]
[1735653352161,15.62695787,196.04,195.96,4.0]
[1735653352367,15.62695787,196.02,195.96,4.0]
[1735653352567,15.62695787,196.03,195.96,19.62695787]
[1735653352774,15.62695787,196.04,195.96,19.62695787]
[1735653353380,15.62695787,196.04,195.97,15.62695787]
[1735653353759,15.62695787,196.05,195.98,15.62695787]
[1735653354795,15.62695787,196.04,195.97,15.62695787]
[1735653356376,15.62695787,196.05,195.98,15.62695787]
[1735653357309,15.62695787,196.04,195.96,19.62695787]
[1735653357723,15.62695787,196.02,195.96,4.0]
[1735653357871,15.62695787,196.0,195.96,4.0]
[1735653358070,15.62695787,196.02,195.96,4.0]
[1735653358273,15.62695787,196.04,195.97,15.62695787]
[1735653358701,15.62695787,196.01,195.96,4.0]
[1735653360374,15.62695787,195.99,195.96,4.0]
[1735653360882,15.62695787,196.01,195.96,4.0]
[1735653361075,20.0,195.99,195.96,4.0]
[1735653361974,15.62695787,195.98,195.96,4.0]
[1735653362793,35.62695787,195.97,195.96,4.0]
[1735653363993,6.88269,196.0,195.85,1.6164]
[1735653363994,20.0,195.93,195.86,15.62695787]
[1735653364177,15.62695787,195.92,195.85,17.24335787]
[1735653364369,15.62695787,195.91,195.84,15.62695787]
[1735653364577,15.62695787,195.9,195.83,15.62695787]
[1735653365193,15.62695787,195.89,195.82,15.62695787]
[1735653365521,15.62695787,195.88,195.81,15.62695787]
[1735653365694,15.62695787,195.89,195.82,15.62695787]
[1735653366304,8.12269,195.92,195.83,15.62695787]
[1735653366305,15.62695787,195.9,195.83,15.62695787]
[1735653367005,35.62695787,195.89,195.82,15.62695787]
[1735653367202,15.62695787,195.88,195.81,15.62695787]
[1735653367390,15.62695787,195.87,195.8,15.62695787]
[1735653367776,15.62695787,195.87,195.78,0.12549]
[1735653367777,15.62695787,195.89,195.82,15.62695787]
[1735653368188,15.62695787,195.88,195.81,15.62695787]
[1735653368388,15.62695787,195.87,195.75,12.7712]
[1735653368606,15.62695787,195.87,195.8,15.62695787]
[1735653368809,15.62695787,195.86,195.79,15.62695787]
[1735653369007,15.62695787,195.85,195.78,15.62695787]
[1735653369211,15.62695787,195.85,195.74,20.0]
[1735653369392,15.62695787,195.87,195.8,15.62695787]
[1735653369596,15.62695787,195.86,195.79,15.62695787]
[1735653369916,15.62695787,195.84,195.77,15.62695787]
[1735653370402,5.1054,195.87,195.76,15.62695787]
[1735653370403,15.62695787,195.83,195.76,15.62695787]
[1735653370913,15.62695787,195.82,195.75,15.62695787]
[1735653371781,15.62695787,195.81,195.74,15.62695787]
[1735653372325,15.62695787,195.8,195.73,15.62695787]
[1735653372621,15.62695787,195.82,195.75,15.62695787]
[1735653372911,15.62695787,195.86,195.79,15.62695787]
[1735653373119,10.2067,195.95,195.79,15.62695787]
[1735653373458,10.2067,195.95,195.72,14.3861]
[1735653373459,15.62695787,195.84,195.77,15.62695787]
[1735653374401,15.62695787,195.83,195.73,0.12549]
[1735653374604,15.62695787,195.82,195.75,15.62695787]
[1735653374800,5.1055,195.87,195.77,15.62695787]
[1735653375008,15.62695787,195.84,195.77,15.62695787]
[1735653375199,15.62695787,195.84,195.73,24.027864]
[1735653375401,15.62695787,195.84,195.77,15.62695787]
[1735653375938,15.62695787,195.83,195.76,15.62695787]
[1735653376109,15.62695787,195.83,195.75,15.62695787]
[1735653376287,15.62695787,195.81,195.74,15.62695787]
[1735653376598,23.42065787,195.83,195.76,15.62695787]
[1735653376797,15.62695787,195.82,195.75,15.62695787]
[1735653376993,15.62695787,195.81,195.74,15.62695787]
[1735653377807,15.62695787,195.8,195.73,15.62695787]
[1735653378906,15.62695787,195.8,195.69,1.6133]
[1735653378907,15.62695787,195.79,195.72,15.62695787]
[1735653379636,7.7937,195.91,195.78,15.62695787]
[1735653379835,15.62695787,195.87,195.8,15.62695787]
[1735653380323,15.62695787,195.88,195.81,15.62695787]
[1735653380527,15.62695787,195.89,195.82,15.62695787]
[1735653380720,15.62695787,195.89,195.81,15.62695787]
[1735653381220,15.62695787,195.88,195.81,15.62695787]
[1735653382408,15.75244787,195.89,195.81,15.62695787]
[1735653382611,15.75244787,195.89,195.82,15.62695787]
[1735653382814,15.62695787,195.89,195.82,15.62695787]
[1735653383228,23.42065787,195.91,195.83,15.62695787]
[1735653383449,23.42065787,195.91,195.78,1.5257]
[1735653383450,8.1592,195.96,195.86,15.62695787]
[1735653383721,15.62695787,195.94,195.87,15.62695787]
[1735653384252,8.1592,195.96,195.84,0.12549]
[1735653384448,8.1592,195.96,195.83,20.0]
[1735653384449,15.62695787,195.91,195.83,20.0]
[1735653384626,15.62695787,195.91,195.84,15.62695787]
[1735653384817,29.005674,195.95,195.85,15.62695787]
[1735653384818,15.62695787,195.92,195.85,15.62695787]
[1735653385430,15.62695787,195.91,195.84,15.62695787]
[1735653385736,15.62695787,195.92,195.85,15.62695787]
[1735653385925,15.62695787,195.91,195.78,14.2944]
[1735653386116,15.62695787,195.91,195.84,15.62695787]
[1735653386434,15.62695787,195.9,195.83,15.62695787]
[1735653386611,15.62695787,195.89,195.83,15.62695787]
[1735653389147,35.62695787,195.9,195.83,15.62695787]
[1735653390745,20.0,195.9,195.83,15.62695787]
[1735653391039,35.62695787,195.9,195.83,15.62695787]
[1735653391548,20.0,195.9,195.84,15.62695787]
[1735653391856,15.62695787,195.93,195.86,15.62695787]
[1735653392140,15.62695787,195.94,195.87,15.62695787]
[1735653393217,15.62695787,195.94,195.86,15.62695787]
[1735653393424,15.62695787,196.0,195.8,15.62695787]
[1735653393425,15.62695787,195.92,195.85,15.62695787]
[1735653393625,15.62695787,195.93,195.86,15.62695787]
[1735653394018,15.62695787,195.92,195.85,15.62695787]
[1735653395819,15.62695787,195.92,195.84,15.62695787]
[1735653396826,15.62695787,195.91,195.84,15.62695787]
[1735653398352,10.03222314,195.91,195.84,10.03222314]
[1735653398937,10.03222314,195.89,195.82,10.03222314]
[1735653399340,5.104,195.93,195.78,1.5257]
[1735653399341,24.027864,195.92,195.81,10.03222314]
[1735653399528,10.03222314,195.89,195.82,10.03222314]
[1735653400345,15.67801323,195.89,195.82,15.67801323]
[1735653400850,23.39181323,195.88,195.79,20.0]
[1735653401041,15.67801323,195.86,195.72,1.5347]
[1735653401350,15.67801323,195.83,195.76,15.67801323]
[1735653401642,15.67801323,195.82,195.75,15.67801323]
[1735653401831,7.7138,195.88,195.75,15.67801323]
[1735653401832,15.67801323,195.81,195.75,15.67801323]
[1735653402239,15.67801323,195.82,195.75,15.67801323]
[1735653402830,15.67801323,195.83,195.76,15.67801323]
[1735653403149,15.67801323,195.82,195.75,15.67801323]
[1735653403527,15.67801323,195.81,195.74,15.67801323]
[1735653403830,15.67801323,195.8,195.74,15.67801323]
[1735653404649,15.67801323,195.83,195.76,15.67801323]
[1735653405534,15.67801323,195.82,195.75,15.67801323]
[1735653406228,15.67801323,195.81,195.74,15.67801323]
[1735653406433,15.67801323,195.79,195.7,0.12549]
[1735653406646,15.67801323,195.79,195.72,15.67801323]
[1735653406850,15.67801323,195.8,195.73,15.67801323]
[1735653408847,15.67801323,195.8,195.66,12.777]
[1735653408848,15.67801323,195.78,195.72,15.67801323]
[1735653409235,15.67801323,195.78,195.71,15.67801323]
[1735653409944,15.67801323,195.8,195.73,15.67801323]
[1735653411735,15.67801323,195.79,195.72,15.67801323]
[1735653412667,8.1422,195.81,195.68,13.02688]
[1735653412668,23.82021323,195.81,195.74,15.67801323]
[1735653412844,15.67801323,195.8,195.73,15.67801323]
[1735653413351,23.82021323,195.81,195.74,15.67801323]